Cogmind - Beta 15 @@@ ROGUE MODE // 2025.05.06 @ 22:53:54 Player: GlasMayne Result: Self-destructed Performance ------------- Evolutions (1) 500 Regions Visited (3) 600 Robots Destroyed (18) 90 Value Destroyed (371) 371 Prototype IDs (0) 0 Alien Tech Used (0) 0 Bonus (0) 0 TOTAL SCORE: 1561 Bonus ------- None Cogmind --------- Core Integrity 376/400 Matter 213/300 Energy 100/100 System Corruption 0% Temperature Cool (0) Movement Rolling (140) Ox4 Location -9/Materials Parts ------- > --- POWER (1) -------- (None) > --- PROPULSION (3) --- Wheel > --- UTILITY (3) ------ High-capacity Storage Unit Seismic Detector Core Shielding > --- WEAPON (2) ------- Heavy Assault Rifle Grenade Launcher > --- INVENTORY (20) --- Ion Engine Light Ion Engine Light Treads Light Treads Small Storage Unit Large Storage Unit Signal Interpreter Terrain Scan Processor ECM Suite Utility Shielding Small Laser Light Assault Rifle Light Assault Rifle Mining Claw Peak State ------------ > --- POWER ------------ Light Ion Engine > --- PROPULSION ------- Wheel Wheel > --- UTILITY ---------- High-capacity Storage Unit Seismic Detector ECM Suite > --- WEAPON ----------- Heavy Assault Rifle Rocket Launcher > --- INVENTORY -------- Ion Engine Light Ion Engine Light Treads Light Treads Small Storage Unit Signal Interpreter Core Shielding Small Laser Light Assault Rifle Light Assault Rifle Grenade Launcher Mining Claw [Rating: 11] Favorites ----------- Power Light Ion Engine Engine Light Ion Engine Propulsion Wheel Wheel Wheel Utility Seismic Detector Device Seismic Detector Storage High-capacity Storage Unit Protection Core Shielding Weapon Small Laser Energy Gun Small Laser Ballistic Gun Heavy Assault Rifle Launcher Rocket Launcher Build | -11 -10 -10 -9 ------- Run | Yrd Mat Min Mat Slots Evolved 2 | . . . 2 Power . | . . . . Propulsion 1 | . . . 1 Utility 1 | . . . 1 Weapon . | . . . . Parts Attached 16 | 6 1 6 3 Power 3 | 1 . 2 . Engine 3 | 1 . 2 . Core . | . . . . Reactor . | . . . . Propulsion 2 | 2 . . . Treads . | . . . . Leg . | . . . . Wheel 2 | 2 . . . Hover . | . . . . Flight . | . . . . Utility 5 | 1 1 1 2 Device 2 | . 1 . 1 Storage 2 | 1 . 1 . Processor . | . . . . Hackware . | . . . . Protection 1 | . . . 1 Artifact . | . . . . Weapon 6 | 2 . 3 1 Energy Gun 2 | 2 . . . Energy Cannon . | . . . . Ballistic Gun 2 | . . 1 1 Ballistic Cannon . | . . . . Launcher 2 | . . 2 . Special Weapon . | . . . . Impact Weapon . | . . . . Slashing Weapon . | . . . . Piercing Weapon . | . . . . Special Melee Weapon . | . . . . Unidentified Prototypes . | . . . . Parts Lost 5 | . . 1 4 Power 2 | . . 1 1 Propulsion 1 | . . . 1 Utility . | . . . . Weapon 2 | . . . 2 Highest Loss Streak 4 | . . 1 4 To Critical Strikes . | . . . . Average Backups 8 | 3 4 8 13 Power 1 | . 1 . 2 Propulsion 1 | 1 2 2 2 Utility 2 | . . 2 4 Weapon 3 | . . 3 5 Tool/Special . | . . . . Unused Backups 10 | . . . 10 Power 2 | . . . 2 Propulsion 2 | . . . 2 Utility 3 | . . . 3 Weapon 3 | . . . 3 Tool/Special . | . . . . Average Slot Usage (%) 94 | . 100 97 83 Engine 12 | . 14 12 9 Wheel 26 | . 28 28 22 Device 13 | . 14 14 11 Storage 13 | . 14 14 11 Protection 2 | . . . 7 Energy Gun 9 | . 28 9 . Ballistic Gun 5 | . . 4 11 Launcher 10 | . . 12 11 Peak Build Rating 11 | 6 7 10 11 Average Rating 7 | 3 6 8 10 On Entrance 5 | . 6 5 10 Naked Turns . | . . . . Heaviest Build 52 | 12 13 51 52 Greatest Support 20 | 20 20 20 20 Greatest Overweight (x) 3 | 3 . 2 2 Average Overweight (x) 1 | . . . 2 Largest Inventory Capacity 20 | 8 8 20 20 Average Capacity 14 | 7 8 14 20 Most Carried 15 | 7 6 13 15 Average Carried 8 | 3 4 8 13 Final Capacity 20 | 8 8 20 20 Final Carried 14 | 4 6 13 14 Class Distribution -------------------- 100% | Mutant Dominant Class ---------------- Mutant | -10/Materials Mutant | -10/Mines Mutant | -9/Materials Resources | -11 -10 -10 -9 ----------- Run | Yrd Mat Min Mat Matter Collected 465 | 260 . 157 48 Remotely . | . . . . Salvage Created 370 | 100 16 166 88 Parts 28 | 5 1 16 6 Haulers Intercepted . | . . . . Recyclers Shooed 1 | 1 . . . Parts Field Recycled . | . . . . Retrieved Matter . | . . . . Parts Self-Destructed . | . . . . Prevented . | . . . . Kills | -11 -10 -10 -9 ------- Run | Yrd Mat Min Mat Combat Hostiles Destroyed 12 | . . 10 2 Guns 4 | . . 3 1 AOE 8 | . . 7 1 Classes Destroyed 8 | 2 1 4 1 Worker 1 | . . 1 . Builder 2 | . . . 2 Tunneler 1 | 1 . . . Recycler 1 | 1 . . . Watcher 1 | . 1 . . Swarmer 6 | . . 6 . Grunt 2 | . . 2 . Sentry 4 | . . 2 2 Best Kill Streak 3 | 2 1 3 2 Combat Bots Only 3 | . . 3 1 Max Kills in Single Turn 3 | 1 1 3 2 Gunslinging . | . . . . Exploded 2 | . . 2 1 Melee . | . . . . Uniques/NPCs Destroyed . | . . . . Combat | -11 -10 -10 -9 -------- Run | Yrd Mat Min Mat Hostile Shots Fired 48 | . . 34 14 Missed 15 | . . 12 3 Hits 33 | . . 22 11 Projectile 33 | . . 22 11 Damage Taken 518 | . . 321 197 Core 145 | . . 121 24 Absorbed by Shields . | . . . . Redirected to Shielding 5 | . . . 5 Core Remaining (%) 75 | 100 . 51 . Volleys Fired 35 | 3 2 22 8 Largest 2 | 2 2 2 2 Hottest 80 | 80 80 73 56 Shots Fired 54 | 6 4 31 13 Gun 37 | 6 4 22 5 Cannon . | . . . . Launcher 17 | . . 9 8 Special . | . . . . Kinetic 9 | . . 4 5 Thermal 28 | 6 4 18 . Explosive 17 | . . 9 8 Electromagnetic . | . . . . Robot Hit Streak 10 | 5 2 4 10 Robot Miss Streak 2 | 1 2 2 2 Penetration Max . | . . . . Secondary Targets . | . . . . Shots Hit Robots 29 | 5 2 14 8 Core Hits 30 | 3 1 20 6 Critical Kills 1 | . . . 1 Critical Parts Destroyed . | . . . . Critical Strikes 1 | . . . 1 Destroy 1 | . . . 1 Melee Attacks . | . . . . Impact . | . . . . Slashing . | . . . . Piercing . | . . . . Sneak Attacks . | . . . . Combat Hostiles . | . . . . Follow-up Attacks . | . . . . Damage Inflicted 899 | 53 22 519 305 Guns 228 | 53 22 106 47 Cannons . | . . . . Explosions 671 | . . 413 258 Melee . | . . . . Ramming . | . . . . Kinetic 65 | . . 18 47 Thermal 163 | 53 22 88 . Explosive 671 | . . 413 258 Electromagnetic . | . . . . Impact . | . . . . Slashing . | . . . . Piercing . | . . . . Highest Corruption . | . . . . Average Corruption . | . . . . Corruption Purged . | . . . . Corruption Blocked . | . . . . Overload Shots . | . . . . Overflow Damage 16 | . . 8 8 Projectiles . | . . . . Explosions 16 | . . 8 8 Melee . | . . . . Knockbacks . | . . . . Impact . | . . . . Kinetic . | . . . . Secondary . | . . . . Self-Inflicted Damage 128 | . . 88 40 Shots 3 | . . 2 1 Rammed . | . . . . Targets Rammed . | . . . . Kicked . | . . . . Crushed . | . . . . Highest Temperature 56 | 56 36 36 4 Average Temperature 16 | 25 20 13 3 Received Heat Transfer 105 | . . 51 54 Siege Activations . | . . . . Martial Activations . | . . . . Shielding Activations . | . . . . Robots Disrupted . | . . . . Combat Hostiles . | . . . . Robots Corrupted . | . . . . Combat Hostiles . | . . . . Parts Fried . | . . . . Impact Corruptions . | . . . . Robots Melted . | . . . . Combat Hostiles . | . . . . Parts Melted . | . . . . Heat Transferred 375 | 125 50 200 . Parts Sabotaged . | . . . . Parts Stolen . | . . . . Parts Stripped . | . . . . Power Chain Reactions . | . . . . Alert | -11 -10 -10 -9 ------- Run | Yrd Mat Min Mat Maximum Alert Level . | . . . . Low Security (%) 100 | 100 100 100 100 Level 1 . | . . . . Level 2 . | . . . . Level 3 . | . . . . Level 4 . | . . . . Level 5 . | . . . . High Security . | . . . . Max Security . | . . . . Peak Influence 182 | 5 7 182 55 Initial 55 | . . . 55 Average 65 | . 1 113 36 Influence Increases 449 | 10 7 322 110 Destroy 0b10 Robot/C 240 | . . 200 40 Destroy 0b10 Robot/NC 30 | 10 5 5 10 Destroy Leader 52 | . 2 30 20 Disable Machine 15 | . . 15 . Destroy Structure 112 | . . 72 40 Influence Decreases 404 | 10 7 180 207 Entered New Map 87 | . . . 87 Time Decay 267 | 10 7 170 80 Lost Part 50 | . . 10 40 Squads Dispatched 2 | . 1 . 1 Investigation . | . . . . Extermination . | . . . . Reinforcement 2 | . 1 . 1 Assault . | . . . . Garrison . | . . . . Intercept . | . . . . Searches Triggered . | . . . . Construction Impeded . | . . . . Haulers Reinforced . | . . . . Active Scanning Responses . | . . . . Cargo Convoy Interrupts . | . . . . Stealth | -11 -10 -10 -9 --------- Run | Yrd Mat Min Mat Distress Signals . | . . . . Communications Jammed . | . . . . Distress Signals . | . . . . Times Spotted 16 | . 2 9 5 Peak Tracking Total 3 | . 1 3 2 Tactical Retreats . | . . . . Traps | -11 -10 -10 -9 ------- Run | Yrd Mat Min Mat Traps Triggered 1 | . 1 . . Indirectly . | . . . . Trap Hack Attempts . | . . . . Triggered . | . . . . Disarmed . | . . . . Reprogrammed . | . . . . Reused . | . . . . Traps Extracted . | . . . . Installed . | . . . . Triggered . | . . . . Machines | -11 -10 -10 -9 ---------- Run | Yrd Mat Min Mat Machines Disabled 3 | . . 3 . Max in Single Turn 2 | . . 2 . Machines Repaired . | . . . . Machines Dismantled . | . . . . Machines Sabotaged . | . . . . Overloaded Fab Kills . | . . . . Hacking | -11 -10 -10 -9 --------- Run | Yrd Mat Min Mat Machines Accessed 2 | . . . 2 Terminals 2 | . . . 2 Fabricators . | . . . . Repair Stations . | . . . . Recycling Units . | . . . . Scanalyzers . | . . . . Garrison Access . | . . . . Total Hacks 6 | . . . 6 Successful 3 | . . . 3 Failed 3 | . . . 3 Catastrophic . | . . . . Database Lockouts . | . . . . Manual 1 | . 1 . . Terminals 6 | . . . 6 Fabricators . | . . . . Repair Stations . | . . . . Recycling Units . | . . . . Scanalyzers . | . . . . Garrison Access . | . . . . Terminal Hacks 3 | . . . 3 Record 2 | . . . 2 Alert Level 1 | . . . 1 Fabricator Hacks . | . . . . Repair Station Hacks . | . . . . Recycling Unit Hacks . | . . . . Scanalyzer . | . . . . Garrison Access Hacks . | . . . . Unauthorized Hacks . | . . . . Terminals . | . . . . Fabricators . | . . . . Repair Stations . | . . . . Recycling Units . | . . . . Scanalyzers . | . . . . Garrison Access . | . . . . Data Cores Recovered . | . . . . Used . | . . . . Hacking Detections . | . . . . Full Trace Events . | . . . . Feedback Events . | . . . . Feedback Blocked . | . . . . Robot Schematics Acquired . | . . . . Robots Built . | . . . . Authchips . | . . . . Time . | . . . . Total Robot Build Rating . | . . . . Part Schematics Acquired . | . . . . Parts Built . | . . . . Authchips . | . . . . Time . | . . . . Total Part Build Rating . | . . . . Parts Repaired . | . . . . Time . | . . . . Parts Recycled . | . . . . Recycled Matter . | . . . . Retrieved Matter . | . . . . Retrieved Components . | . . . . Parts Scanalyzed . | . . . . Part Schematics Acquired . | . . . . Parts Damaged . | . . . . Bothacking | -11 -10 -10 -9 ------------ Run | Yrd Mat Min Mat Used RIF Installer . | . . . . Robots Hacked . | . . . . Non-combat . | . . . . Combat . | . . . . Robot Hacks Applied . | . . . . Relay Couplers Released . | . . . . Fabnet Peak Effective % . | . . . . Robots Rewired . | . . . . Allies Hacked . | . . . . Hacks Repelled . | . . . . Allies | -11 -10 -10 -9 -------- Run | Yrd Mat Min Mat Total Allies . | . . . . Largest Group . | . . . . Highest-Rated Group . | . . . . Highest-Rated Ally . | . . . . Total Orders . | . . . . Ally Attacks . | . . . . Total Damage . | . . . . Kills . | . . . . Allies Corrupted . | . . . . Allies Melted . | . . . . Intel | -11 -10 -10 -9 ------- Run | Yrd Mat Min Mat Active Infowar (turns) 632 | . 101 360 171 Seismic 632 | . 101 360 171 ECM 1 | . . . 1 Robot Analysis Total . | . . . . Derelict Logs Recovered 2 | . . 2 . Drone Launches . | . . . . Drone Recoveries . | . . . . Exploration | -11 -10 -10 -9 ------------- Run | Yrd Mat Min Mat Turns Passed 724 | 92 101 360 171 Spaces Moved 607 | 58 114 307 128 Core 24 | 24 . . . Treads . | . . . . Legs . | . . . . Wheels 583 | 34 114 307 128 Hover . | . . . . Flight . | . . . . Fastest Speed 50 | 50 80 80 110 Average Speed 97 | 115 80 94 110 Slowest Speed 200 | 200 80 110 110 Overloaded Moves . | . . . . Propulsion Burnouts . | . . . . Robots Hopped . | . . . . Potential Cave-ins . | . . . . Cave-ins Triggered . | . . . . Exploration Rate (%) 29 | 4 28 70 15 Regions Visited 3 Branch Regions 1 Pre-discovered Areas 1 | . . 1 . Known Exits Taken . | . . . . Unknown Exits Taken 3 | 1 1 1 . Scrap Searched 1 | . . 1 . Spaces Dug 14 | . . 14 . Terrain Destroyed 126 | . . 78 48 Melee . | . . . . Projectile . | . . . . AOE 126 | . . 78 48 Terrain Rammed . | . . . . Walls Destroyed . | . . . . Machines Disabled . | . . . . Actions | -11 -10 -10 -9 --------- Run | Yrd Mat Min Mat Total 683 | 76 119 344 144 Wait . | . . . . Move 604 | 57 113 306 128 Hop . | . . . . Pick Up 27 | 10 3 10 4 Fast Attach . | . . . . Attach 13 | 6 1 3 3 Detach . | . . . . Swap 4 | . . 3 1 Drop . | . . . . Fire 35 | 3 2 22 8 Melee . | . . . . Ram . | . . . . Kick . | . . . . Crush . | . . . . Escape Stasis . | . . . . Rewire . | . . . . Trap . | . . . . Miscellaneous . | . . . . Route ------- -11/Scrapyard -10/Materials -10/Mines -9/Materials History --------- Turn | Location | Event 34 | -11/Scrapyard | Discovered new exit (range 16) 93 | -11/Scrapyard | Entered Materials 94 | -10/Materials | Met a group of wandering Federalists 180 | -10/Materials | Discovered new exit (range 12) 194 | -10/Materials | Entered Mines 206 | -10/Mines | Learned Materials terminal intel 304 | -10/Mines | Build established: Mutant 386 | -10/Mines | Received a Rocket Launcher from a helpful Derelict 520 | -10/Mines | Learned Materials garrison access intel 543 | -10/Mines | Discovered new exit (range 6) 547 | -10/Mines | Learned location of Storage (-8) 554 | -10/Mines | Entered Materials 554 | -9/Materials | Evolved 2 slots: Propulsion x1, Utility x1 555 | -9/Materials | Loaded intel: 12 terminal locations 725 | -9/Materials | Self-destructed Last Messages --------------- 00664_ U-05 Engineer destroyed. 00668_ ALERT: Hostiles spotted, dispatching reinforcements to Terminal M009. 00671_ Acquired 48 matter. 00673_ Acquired Terrain Scan Processor. 00675_ U-05 Engineer builds a Wall. 00675_ Acquired Hvy. Assault Rifle. 00680_ U-05 Engineer builds a Wall. 00691_ Hvy. Assault Rifle destroyed. 00697_ Rocket Launcher destroyed. 00700_ Lgt. Ion Engine destroyed. 00702_ Y-45 Defender suffers critical hit (Destroy). 00702_ Y-45 Defender destroyed. 00704_ The unstable cave ceiling collapses. 00710_ Acquired Lrg. Storage Unit. 00711_ The unstable cave ceiling collapses. 00722_ Wheel destroyed. 00722_ Destroyed Wheel. 00722_ U-05 Engineer destroyed. Map ----- +----------------------------------------------------+ | ?????########### # #???? | | ???????????????# ##########???? | | ????########???# ############?? | | ????# ??# ## #?? | | ????#"" ?## ## #?? | | ????#"Y # # #?? | | ?????"" # # #?? | | ????? """ + T + #?? | | ????? / """ # # #?? | | ?????? """ # # #?? | | ?????? ?####### #?? | | ???????######???????##+########?? | | ?????????????????????# #????????? | | ?????????????????????# #????????? | | ?????????????????????# #?####???? | | ????????????????????##+### ???? | | ????????????????????# ## ""??? | | ????????????????????# T ## """?? | | ???????#+#######+#### ## """?? | | ???????? ## ## # | | ???????? ## ## """ # | | ??????????? ## ## """ # | | ??????????????#### # ## """ # | | ??????????????## = ## # | | ??????????????## g* """ # | | ??????????????## % %!@ """ # | | ??????????????## * ## """ # | | ??????????????# # ### # # | | ????????????? # ##### # # | | ??????????? ?+ ## | | ?????????# ?# ## [=! | | ?????????# ??# ## [ ! | | ?????????# ??# ## =! # | | ?????????# ???# ## # | | ?????????###+???# ## | | ????????????????# ## | | ????????????????# ## ### | | ???????????????? ?##+########?? | | ????????????????= ?????????????? | | ???????????????? T?????????????? | | ???????????????? ??????????????? | | ????????????????????????????????? | | ????????????????????????????????? | | ????????????????????????????????? | | ????????????????????????????????? | | ????????????????????????????????? | | | | | | | | | +----------------------------------------------------+ Best States ------------- Heat Dissipation 28 Energy Generation 10 Energy Capacity 250 Matter Stores 300 Matter Capacity 300 Sight Range 16 Terrain Scan Density 10 Core Shielding 20 Evasion (%) 44 Item Schematics ----------------- None Robot Schematics ------------------ None Fabricated ------------ Nothing Repaired ---------- Nothing Alien Tech Used ----------------- None Achievements -------------- None Challenges ------------ None Game ------ Seed VariableLauncherRay Manual? 0 Play Time 00:12:22 Cumulative 16.8 hours Start 2025.05.06 @ 22:42:12 End 2025.05.06 @ 22:53:54 Sessions 1 Manual Loads 0 Difficulty Rogue Special Mode None Game No. 30 Rogue 30 Adventurer 0 Explorer 0 Win Type - Total 0 Types 0/0/0/0/0/0/0/0/0/0 Lore% 10 Gallery% 22 Achievement% 17 Wizard Run 0 Options --------- Layout 2 ASCII 0 Keyboard 0 Movement Mouse Keybinds 0 Fullscreen 1 Font 24/Smallcaps Map View 50x44 Zoom Use 0% Tactical HUD 1 Map Filters NONE Filters NONE Steam 1 RUN: 4697d172-8af2-41da-96e3-972914f10ac9